Workbook

Sheet parabool
J1: Parabola: y = ax2 + bx + c | AH1: b spinner | AI1: 15
D2: 152 | AH2: a spinner | AI2: 6
AA3: x | AB3: =E9 -> 3 | AH3: c spinner | AI3: 60
AE4: k | AF4: =$E$5* E9^2+$E$6*E9-AF5*E9+$E$7 -> -54.8 | AH4: x | AI4: 80
D5: a = | E5: =(-100+D2)/10 -> 5.2 | G5: D = | H5: b2 - 4ac | K5: Axis of symmetry = | L5: -b/(2a) | M5: · | N5: Turning point x = | O5: -b/(2a) | P5: ="= " & L7 -> = 0,337 | AE5: Helling | AF5: =2*$E$5*$E$9+$E$6 -> 27.7
D6: b = | E6: =ROUND(-5+AI1/10,1) -> -3.5 | G6: = | H6: ="(" & E6 & ")^2-4(" & E5 & ")(" & E7 & ")" -> (-3,5)^2-4(5,2)(-8) | K6: = | L6: ="-(" &E6 & ")/2(" &E5 & ")" -> -(-3,5)/2(5,2) | N6: Turning point y = | O6: -D/(4a) | P6: ="= " &ROUND( -H7/4/E5,3) -> = -8,589 | AA6: x | AB6: y | AC6: y' | AD6: y'1
D7: c = | E7: =(-100+AI3)/5 -> -8 | G7: = | H7: =(E6)^2-4*E5*E7 -> 178.65 | K7: = | L7: =ROUND(-E6/2/E5,3) -> 0.337 | AA7: -5 | AB7: =$E$5*AA7^2+$E$6*AA7+$E$7 -> 139.5 | AC7: =$AF$5*AA7+$AF$4 -> -193.3
G8: ÖD = | H8: =IF(ISERROR((E6^2-4*E5*E7)^0.5)=TRUE,"Non-real roots",ROUND((E6^2-4*E5*E7)^0.5,4)) -> 13.366 | AA8: -4.5 | AB8: =$E$5*AA8^2+$E$6*AA8+$E$7 -> 113.05 | AC8: -179.45
D9: x = | E9: =ROUND(-5+AI4/10,1) -> 3 | AA9: -4 | AB9: 89.2 | AC9: -165.6
F10: · | G10: Roots = | H10: -b±ÖD | AA10: -3.5 | AB10: 67.95 | AC10: -151.75
H11: 2a | AA11: -3 | AB11: 49.3 | AC11: -137.9
G12: = | H12: =IF(H7<0,"",("-(" & E6 & ") ± (" & H8 & ")")) -> -(-3,5) ± (13,366) | AA12: -2.5 | AB12: 33.25 | AC12: -124.05
H13: =IF(H7<0,"",(2 & "(" &E5 & ")")) -> 2(5,2) | AA13: -2 | AB13: 19.8 | AC13: -110.2
G14: = | H14: =IF(ISERROR(ROUND((-E6+H8)/2/E5,3) & "; " & ROUND((-E6-H8)/2/E5,3))=TRUE,"Non-real roots",ROUND((-E6+H8)/2/E5,3) & "; " & ROUND((-E6-H8)/2/E5,3)) -> 1,622; -0,949 | AA14: -1.5 | AB14: 8.95 | AC14: -96.35
AA15: -1 | AB15: 0.7 | AC15: -82.5
G16: Gradient = | H16: 2ax + b | AA16: -0.5 | AB16: -4.95 | AC16: -68.65
G17: = | H17: ="2(" & E5 & ")(" & E9 &")+(" & E6 & ")" -> 2(5,2)(3)+(-3,5) | AA17: 0 | AB17: -8 | AC17: -54.8
G18: = | H18: =ROUND(2*E5*E9+E6,3) -> 27.7 | AA18: 0.5 | AB18: -8.45 | AC18: -40.95
AA19: 1 | AB19: -6.3 | AC19: -27.1 | AD19: -16.615
AA20: 1.5 | AB20: -1.55 | AC20: -13.25 | AD20: -9.265
D21: -5 | E21: =$H$18*D21-(($E$6-$H$18)^2-4*$E$5*$E$7)/4/$E$5 -> -193.3 | G21: =L7 -> 0.337 | H21: 40 | AA21: 2 | AB21: 5.8 | AC21: 0.6 | AD21: -1.915
D22: 5 | E22: =$H$18*D22-(($E$6-$H$18)^2-4*$E$5*$E$7)/4/$E$5 -> 83.7 | G22: =L7 -> 0.337 | H22: -40 | AA22: 2.5 | AB22: 15.75 | AC22: 14.45 | AD22: 5.435
AA23: 3 | AB23: 28.3 | AC23: 28.3 | AD23: 12.785
AA24: 3.5 | AB24: 43.45 | AC24: 42.15 | AD24: 20.135
AA25: 4 | AB25: 61.2 | AC25: 56 | AD25: 27.485
AA26: 4.5 | AB26: 81.55 | AC26: 69.85 | AD26: 34.835
AA27: 5 | AB27: =$E$5*$AA$27^2+$E$6*$AA$27+$E$7 -> 104.5 | AC27: 83.7
AC28: =IF($AF$5*AA28+$AF$4>MAX($AB$7:$AB$27),"",IF($AF$5*AA28+$AF$4<MIN($AB$7:$AB$27),"",$AF$5*AA28+$AF$4)) -> 
AF29: x | AG29: y
AA30: x | AB30: y | AC30: y' | AE30: wortel 1 | AF30: =IF(ISERROR((-$E$6+SQRT($E$6^2-4*$E$5*$E$7))/2/$E$5)=TRUE,10,(-$E$6+SQRT($E$6^2-4*$E$5*$E$7))/2/$E$5) -> 1.621730927 | AG30: 0
AA31: =-$E$6/2/$E$5 -> 0.3365384615 | AB31: =MIN(AB7:AB27)-5 -> -13.45 | AC31: =$E$5*$AA$31^2+$E$6*$AA$31+$E$7 -> -8.588942308 | AE31: wortel 2 | AF31: =IF(ISERROR((-$E$6-SQRT($E$6^2-4*$E$5*$E$7))/2/$E$5)=TRUE,10,(-$E$6-SQRT($E$6^2-4*$E$5*$E$7))/2/$E$5) -> -0.9486540044 | AG31: 0
AA32: =-$E$6/2/$E$5 -> 0.3365384615 | AB32: =MAX(AB7:AB27)+5 -> 144.5
